Cogmind - Beta 17 @@@ ROGUE MODE // 2026.08.23 @ 11:22:58 Player: Clog Result: Destroyed by S-10 Pest with Light Assault Rifle Performance ------------- Evolutions (0) 0 Regions Visited (2) 400 Robots Destroyed (34) 170 Value Destroyed (829) 829 Prototype IDs (0) 0 Alien Tech Used (0) 0 Bonus (0) 0 TOTAL SCORE: 1399 Bonus ------- None Cogmind --------- Core Integrity 0/250 Matter 295/300 Energy 151/160 System Corruption 0% Temperature Cool (0) Movement Treading (160) Location -10/Subcaves Parts ------- > --- POWER (1) -------- Light Nuclear Core > --- PROPULSION (2) --- Spiked Treads Spiked Treads > --- UTILITY (2) ------ Scrap Shield > --- WEAPON (2) ------- Subdweller Beam Cannon Battle Cannon > --- INVENTORY (5) ---- Light Treads Shield Generator Heavy Riot Gun Dirty Datajack (20) Mining Claw Peak State ------------ > --- POWER ------------ Light Nuclear Core > --- PROPULSION ------- Spiked Treads Spiked Treads > --- UTILITY ---------- Scrap Shield > --- WEAPON ----------- Subdweller Beam Cannon Battle Cannon > --- INVENTORY -------- Light Treads Shield Generator Subdweller Beam Cannon Dirty Datajack Mining Claw [Rating: 16] Favorites ----------- Power Light Nuclear Core Engine Ion Engine Power Core Light Nuclear Core Propulsion Light Treads Treads Light Treads Utility Large Storage Unit Device Seismic Detector Storage Large Storage Unit Processor Targeting Computer Protection Scrap Shield Weapon Light Assault Rifle Energy Gun Medium Laser Energy Cannon Beam Cannon Ballistic Gun Light Assault Rifle Ballistic Cannon Battle Cannon Special Weapon Mining Laser Slashing Weapon Mining Claw Build | -11 -10 -10 ------- Run | Yrd Mat Sub Slots Evolved . | . . . Power . | . . . Propulsion . | . . . Utility . | . . . Weapon . | . . . Parts Attached 30 | 6 15 9 Power 3 | . 2 1 Engine 1 | . 1 . Core 2 | . 1 1 Reactor . | . . . Propulsion 7 | 2 3 2 Treads 7 | 2 3 2 Leg . | . . . Wheel . | . . . Hover . | . . . Flight . | . . . Utility 7 | 2 4 1 Device 1 | 1 . . Storage 4 | 1 3 . Processor 1 | . 1 . Hackware . | . . . Protection 1 | . . 1 Artifact . | . . . Weapon 13 | 2 6 5 Energy Gun 3 | 2 1 . Energy Cannon 2 | . 1 1 Ballistic Gun 5 | . 3 2 Ballistic Cannon 1 | . . 1 Launcher . | . . . Special Weapon 1 | . 1 . Impact Weapon . | . . . Slashing Weapon 1 | . . 1 Piercing Weapon . | . . . Special Melee Weapon . | . . . Unidentified Prototypes . | . . . Parts Lost 8 | . 5 3 Power 2 | . 1 1 Propulsion 1 | . 1 . Utility 1 | . 1 . Weapon 4 | . 2 2 Highest Loss Streak 2 | . 2 2 To Critical Strikes . | . . . Average Backups 9 | 4 8 11 Power . | 1 1 . Propulsion 2 | 1 2 2 Utility 2 | . 2 3 Weapon 2 | 1 2 3 Tool/Special . | . . . Unused Backups 19 | 1 5 13 Power 2 | . 2 . Propulsion 7 | 1 3 3 Utility 4 | . . 4 Weapon 5 | . . 5 Tool/Special 1 | . . 1 Average Slot Usage (%) 94 | . 92 95 Engine 3 | . 1 6 Core 8 | . 9 7 Treads 26 | . 25 28 Device 4 | . 8 . Storage 12 | . 14 10 Processor 6 | . 3 10 Protection 1 | . . 3 Energy Gun 4 | . 7 . Energy Cannon 6 | . 2 11 Ballistic Gun 14 | . 18 9 Ballistic Cannon 3 | . . 6 Peak Build Rating 16 | 6 10 16 Average Rating 10 | 4 8 12 On Entrance 4 | . 6 8 Avg Prop Armor Cover (%) . | . . . Naked Turns . | . . . Heaviest Build 34 | 9 29 34 Greatest Support 40 | 40 40 40 Greatest Overweight (x) . | . . . Average Overweight (x) . | . . . Largest Inventory Capacity 15 | 8 15 15 Average Capacity 11 | 7 11 12 Most Carried 15 | 6 12 15 Average Carried 9 | 4 9 11 Final Capacity 15 | 8 15 5 Final Carried 10 | 6 10 5 Class Distribution -------------------- 77% | Mutant 14% | Scavenger-Mutant 8% | Derelict-Mutant Dominant Class ---------------- Mutant | -10/Materials Mutant | -10/Subcaves Resources | -11 -10 -10 ----------- Run | Yrd Mat Sub Matter Collected 737 | 260 275 202 Remotely . | . . . Salvage Created 1157 | 70 749 338 Parts 77 | 5 54 18 Haulers Intercepted 2 | . 2 . Recyclers Shooed . | . . . Parts Field Recycled . | . . . Retrieved Matter . | . . . Parts Self-Destructed 4 | . . 4 Prevented . | . . . Parts Restored . | . . . Kills | -11 -10 -10 ------- Run | Yrd Mat Sub Combat Hostiles Destroyed 24 | . 17 7 Guns 21 | . 16 5 Cannons 3 | . 1 2 Classes Destroyed 10 | 1 7 2 Worker 1 | . 1 . Builder 1 | . 1 . Tunneler 3 | 3 . . Hauler 2 | . 2 . Operator 1 | . 1 . Watcher 2 | . 2 . Swarmer 6 | . 6 . Grunt 11 | . 11 . Artisan 1 | . . 1 Subdweller 7 | . . 7 Best Kill Streak 4 | 1 4 2 Combat Bots Only 3 | . 3 2 Max Kills in Single Turn 1 | 1 1 1 Gunslinging . | . . . Exploded . | . . . Melee . | . . . Uniques/NPCs Destroyed . | . . . Combat | -11 -10 -10 -------- Run | Yrd Mat Sub Hostile Shots Fired 158 | . 111 47 Missed 51 | . 31 20 Hits 107 | . 80 27 Projectile 107 | . 80 27 Critical Strikes 2 | . 1 1 Damage Taken 1521 | . 913 608 Core 256 | . 151 105 Absorbed by Shields . | . . . Core Remaining (%) 100 | 100 . . Volleys Fired 137 | 7 94 36 Largest 2 | 2 2 2 Hottest 113 | 80 100 113 Shots Fired 267 | 14 181 72 Gun 221 | 14 172 35 Cannon 43 | . 6 37 Launcher . | . . . Special 3 | . 3 . Kinetic 156 | . 115 41 Thermal 93 | 7 55 31 Explosive . | . . . Electromagnetic 18 | 7 11 . Robot Hit Streak 18 | 7 14 18 Robot Miss Streak 5 | 2 4 5 Penetration Max . | . . . Secondary Targets . | . . . Shots Hit Robots 176 | 11 111 54 Core Hits 66 | 3 45 18 Critical Kills . | . . . Critical Parts Destroyed . | . . . Critical Strikes . | . . . Melee Attacks 4 | . . 4 Impact . | . . . Slashing 4 | . . 4 Piercing . | . . . Sneak Attacks . | . . . Combat Hostiles . | . . . Follow-up Attacks . | . . . Damage Inflicted 1964 | 136 1140 688 Guns 1486 | 136 1040 310 Cannons 449 | . 71 378 Explosions . | . . . Melee . | . . . Ramming 5 | . 5 . Kinetic 991 | . 614 377 Thermal 805 | 56 438 311 Explosive . | . . . Electromagnetic 163 | 80 83 . Impact . | . . . Slashing . | . . . Piercing . | . . . Highest Corruption . | . . . Average Corruption . | . . . Corruption Purged . | . . . Corruption Blocked . | . . . Overload Shots . | . . . Overflow Damage . | . . . Projectiles . | . . . Explosions . | . . . Melee . | . . . Knockbacks 2 | . . 2 Impact . | . . . Kinetic 2 | . . 2 Secondary . | . . . Self-Inflicted Damage . | . . . Shots . | . . . Rammed 1 | . 1 . Targets Rammed 2 | . 2 . Kicked . | . . . Crushed 1 | . 1 . Highest Temperature 256 | 9 248 256 Average Temperature 42 | 4 45 44 Received Heat Transfer 780 | . 414 366 Siege Activations . | . . . Martial Activations . | . . . Shielding Activations . | . . . Robots Disrupted . | . . . Combat Hostiles . | . . . Robots Corrupted . | . . . Combat Hostiles . | . . . Parts Fried 1 | . 1 . Impact Corruptions . | . . . Robots Melted . | . . . Combat Hostiles . | . . . Parts Melted 4 | . 3 1 Heat Transferred 1906 | 125 1115 666 Parts Sabotaged . | . . . Parts Stolen . | . . . Parts Stripped . | . . . Power Chain Reactions . | . . . Alert | -11 -10 -10 ------- Run | Yrd Mat Sub Maximum Alert Level . | . . . Low Security (%) 100 | 100 100 . Level 1 . | . . . Level 2 . | . . . Level 3 . | . . . Level 4 . | . . . Level 5 . | . . . High Security . | . . . Max Security . | . . . Peak Influence 107 | 5 107 . Initial . | . . . Average 30 | . 33 . Influence Increases 529 | 15 514 . Destroy 0b10 Robot/C 340 | . 340 . Destroy 0b10 Robot/NC 50 | 15 35 . Destroy Leader 88 | . 88 . Successful Hack 5 | . 5 . Disable Machine 15 | . 15 . Destroy Structure 1 | . 1 . Lose Combat Pursuer 30 | . 30 . Influence Decreases 529 | 15 484 30 Entered New Map 15 | . . 15 Time Decay 474 | 15 444 15 Lost Part 40 | . 40 . Squads Dispatched 4 | . 4 . Investigation 2 | . 2 . Extermination . | . . . Reinforcement 2 | . 2 . Assault . | . . . Garrison . | . . . Intercept . | . . . Searches Triggered . | . . . Construction Impeded . | . . . Haulers Reinforced . | . . . Active Scanning Responses . | . . . Cargo Convoy Interrupts . | . . . Stealth | -11 -10 -10 --------- Run | Yrd Mat Sub Distress Signals 3 | . 3 . Communications Jammed . | . . . Distress Signals . | . . . Times Spotted 40 | . 28 12 Peak Tracking Total 6 | . 4 6 Tactical Retreats 2 | . 2 . Traps | -11 -10 -10 ------- Run | Yrd Mat Sub Traps Triggered 2 | . 2 . Indirectly . | . . . Trap Hack Attempts . | . . . Triggered . | . . . Disarmed . | . . . Reprogrammed . | . . . Reused . | . . . Traps Extracted . | . . . Installed . | . . . Triggered . | . . . Machines | -11 -10 -10 ---------- Run | Yrd Mat Sub Machines Disabled 1 | . 1 . Max in Single Turn 1 | . 1 . Machines Repaired . | . . . Machines Dismantled . | . . . Machines Sabotaged . | . . . Overloaded Fab Kills . | . . . Hacking | -11 -10 -10 --------- Run | Yrd Mat Sub Machines Accessed 4 | . 4 . Terminals 4 | . 4 . Fabricators . | . . . Repair Stations . | . . . Recycling Units . | . . . Scanalyzers . | . . . Garrison Access . | . . . Total Hacks 10 | . 10 . Successful 4 | . 4 . Failed 6 | . 6 . Catastrophic . | . . . Database Lockouts . | . . . Manual 10 | . 10 . Terminals 10 | . 10 . Fabricators . | . . . Repair Stations . | . . . Recycling Units . | . . . Scanalyzers . | . . . Garrison Access . | . . . Terminal Hacks . | . . . Fabricator Hacks . | . . . Repair Station Hacks . | . . . Recycling Unit Hacks . | . . . Scanalyzer . | . . . Garrison Access Hacks . | . . . Unauthorized Hacks 4 | . 4 . Terminals 4 | . 4 . Botnet 1 | . 1 . Skim 3 | . 3 . Fabricators . | . . . Repair Stations . | . . . Recycling Units . | . . . Scanalyzers . | . . . Garrison Access . | . . . Data Cores Recovered . | . . . Used . | . . . Hacking Detections 4 | . 4 . Full Trace Events . | . . . Feedback Events . | . . . Feedback Blocked . | . . . Robot Schematics Acquired . | . . . Robots Built . | . . . Authchips . | . . . Time . | . . . Total Robot Build Rating . | . . . Part Schematics Acquired . | . . . Parts Built . | . . . Authchips . | . . . Time . | . . . Total Part Build Rating . | . . . Part Studies Acquired . | . . . Parts Repaired . | . . . Time . | . . . Parts Recycled . | . . . Recycled Matter . | . . . Retrieved Matter . | . . . Retrieved Components . | . . . Parts Scanalyzed . | . . . Part Schematics Acquired . | . . . Parts Damaged . | . . . Bothacking | -11 -10 -10 ------------ Run | Yrd Mat Sub Used RIF Installer . | . . . Robots Hacked . | . . . Non-combat . | . . . Combat . | . . . Robot Hacks Applied . | . . . Relay Couplers Released . | . . . Fabnet Peak Effective % . | . . . Robots Rewired . | . . . Allies Hacked . | . . . Hacks Repelled . | . . . Allies | -11 -10 -10 -------- Run | Yrd Mat Sub Total Allies . | . . . Largest Group . | . . . Highest-Rated Group . | . . . Highest-Rated Ally . | . . . Total Orders . | . . . Ally Attacks . | . . . Total Damage . | . . . Kills . | . . . Allies Corrupted . | . . . Allies Melted . | . . . Intel | -11 -10 -10 ------- Run | Yrd Mat Sub Active Infowar (turns) 957 | 32 925 . Seismic 957 | 32 925 . Robot Analysis Total . | . . . Derelict Logs Recovered 1 | . . 1 Drone Launches . | . . . Drone Recoveries . | . . . Exploration | -11 -10 -10 ------------- Run | Yrd Mat Sub Turns Passed 2910 | 170 1464 1276 Spaces Moved 1499 | 93 704 702 Core 17 | 17 . . Treads 1482 | 76 704 702 Legs . | . . . Wheels . | . . . Hover . | . . . Flight . | . . . Fastest Speed 50 | 50 160 160 Average Speed 158 | 139 160 160 Slowest Speed 160 | 160 160 160 Overloaded Moves . | . . . Propulsion Burnouts . | . . . Robots Hopped . | . . . Potential Cave-ins . | . . . Cave-ins Triggered . | . . . Exploration Rate (%) 45 | 4 97 35 Regions Visited 2 Branch Regions 1 Pre-discovered Areas . | . . . Known Exits Taken . | . . . Unknown Exits Taken 2 | 1 1 . Scrap Searched 8 | . . 8 Spaces Dug . | . . . Terrain Destroyed . | . . . Melee . | . . . Projectile . | . . . AOE . | . . . Terrain Rammed . | . . . Walls Destroyed . | . . . Machines Disabled . | . . . Actions | -11 -10 -10 --------- Run | Yrd Mat Sub Total 1789 | 121 882 786 Wait 35 | . 31 4 Move 1497 | 92 703 702 Hop . | . . . Pick Up 44 | 14 18 12 Fast Attach 3 | . 2 1 Attach 15 | 6 5 4 Detach 3 | . 1 2 Swap 16 | . 11 5 Drop 32 | 2 15 15 Fire 137 | 7 94 36 Melee 4 | . . 4 Ram . | . . . Kick . | . . . Crush 2 | . 2 . Escape Stasis . | . . . Rewire 1 | . . 1 Trap . | . . . Miscellaneous . | . . . Route ------- -11/Scrapyard -10/Materials (discovered 6 exits: [*Mat x3] / [*Min x2] / [*Sub]) -10/Subcaves History --------- Turn | Location | Event 4 | -11/Scrapyard | Discovered new exit (range 15) 171 | -11/Scrapyard | Entered Materials 305 | -10/Materials | Build established: Mutant 464 | -10/Materials | Discovered new exit (range 16) 502 | -10/Materials | Discovered new exit (range 13) 599 | -10/Materials | Discovered new exit (range 16) 970 | -10/Materials | Build established: Scavenger-Mutant 1245 | -10/Materials | Discovered new exit (range 16) 1377 | -10/Materials | Build established: Mutant 1394 | -10/Materials | Discovered new exit (range 14) 1398 | -10/Materials | Core integrity fell below 50% 1627 | -10/Materials | Discovered new exit (range 7) 1635 | -10/Materials | Entered Subcaves 1733 | -10/Subcaves | Learned Materials stockpile data 2091 | -10/Subcaves | Ambushed by angry Subdweller bent on revenge 2163 | -10/Subcaves | Curiously followed by a Cobbler waking with a query about "LVR3C" 2183 | -10/Subcaves | Core integrity fell below 20% 2911 | -10/Subcaves | Destroyed by S-10 Pest with Light Assault Rifle Last Messages --------------- 02556_ Acquired 10 matter. 02559_ Dropped Lgt. Treads. 02561_ Dropped Sub. Machine Gun. 02562_ Dropped Sub. Laser. 02562_ Dropped Heat Sink. 02563_ Dropped Signal Interpreter. 02563_ Dropped Sensor Array. 02564_ Dropped Sub. Machine Gun. 02564_ Discarded Targeting Computer. 02565_ Dropped Lgt. Treads. 02565_ Acquired Scrap Shield. 02566_ Dropped Scrap Shield. 02567_ Dropped Lrg. Storage Unit. 02567_ Acquired Scrap Shield. 02569_ Acquired 20 matter. 02582_ CD-A4E(O) collects matter. 02678_ CD-A4E(O) puts together Sub. Monowheel. 02718_ CD-A4E(O) puts together Hvy. Riot Gun. 02750_ Dropped Sub. Beam Cannon. 02750_ Acquired Hvy. Riot Gun. Map ----- +----------------------------------------------------+ | ??????????????????????????????????????????#= [ | | ??????????????????????????????????????????# % | | ??????????????????????????????????????????#[% *= | | ??????????????????????????????????????????# "*%=&% | | ??????????????????????????????????????????####"""" | | ?????????????????????????????????????????????##### | | ??????????????????????????????????????????????#### | | ??????????????????????????????????????????????# | | ??????????????????????????????????????????????## | | ??????????????????????????????????????????????#" | | ????????????????????????????????????????????###" | | ??????????????????????????????????##??????### " | | ??????????????????????????????????# #?##### | | ??????????????????????????????????# ## ## ## | | ??????????????????????????????????# ## | | ??????????????????????????????????## ### | | ???????????????????????????????????## ## ## | | ?????????????????????????????????#### ### | | ?????????????????????????????????# ### #?## | | ??????????????????????????##???### #### ##?? | | ????????????????????????### #### #??# ### | | ????????????????#???????# ##?## | | ???????????????? ##????## #??# | | ????????????# ### ###### #?## # | | ????????????# # ### ### ####### | | ??????????# ## @## ### ##????# | | ??????????# ### ##???# | | ????????? O ## ## ####? | | ?????????? ######?## #? | | ?????????? ##??????## ### ## | | ?????????? ##??????###### | | ?????????? ##?##### #### | | ??????????? ### ##### ### ### | | ??????????????## ss##????# ## | | ?????????????" s ??????# ## | | ????????????? s ??????# #### ## ## | | ????????????? ??????## #??# ## ## #? | | ?????????????? ????????# ??# ## # | | ????????????????????????# ### | | ????????????????????????# ## | | ????????????????????????## #### ### ## | | ?????????????????????????#####??## ##?######## | | ?????????????????????????????????###?????????##### | | ?????????????????????????????????????????????????? | | ?????????????????????????????????????????????????? | | ?????????????????????????????????????????????????? | | ?????????????????????????????????????????????????? | | ?????????????????????????????????????????????????? | | ?????????????????????????????????????????????????? | | ?????????????????????????????????????????????????? | +----------------------------------------------------+ Best States ------------- Heat Dissipation 25 Energy Generation 14 Energy Capacity 250 Matter Stores 300 Matter Capacity 300 Sight Range 16 Terrain Scan Density 10 Armor Coverage 800 Evasion (%) 50 Targeting Accuracy 5 Recoil Reduction 2 Item Schematics ----------------- None Robot Schematics ------------------ None Fabricated ------------ Nothing Repaired ---------- Nothing Studied --------- None Alien Tech Used ----------------- None Achievements -------------- None Challenges ------------ None Game ------ Seed WarpWeldingReplicator Manual? 0 Play Time 00:21:13 Cumulative 32.7 hours Start 2026.08.23 @ 11:03:47 End 2026.08.23 @ 11:22:58 Sessions 1 Manual Loads 0 Difficulty Rogue Special Mode None Game No. 35 Rogue 32 Adventurer 3 Explorer 0 Win Type - Total 1 Types 1/0/0/0/0/0/0/0/0/0 Lore% 29 Gallery% 28 Achievement% 30 Wizard Run 0 Options --------- Layout 1 ASCII 0 Keyboard 0 Movement Mouse Keybinds 0 Fullscreen 1 Font 32/SmallcapsGlow Map View 50x35 Zoom Use 0% Tactical HUD 1 Map Filters NONE Filters NONE Steam 1 RUN: 1c254adb-5335-4c2c-85f1-aef875cdecf2